bitfinex-derivatives/quotes_BTCF0:USTF0_20251125
["timestamp","ask_amount","ask_price","bid_price","bid_amount"]
[1764058475495,0.6319931,87496.0,87495.0,0.20279803]
[1764058475693,0.65625601,87496.0,87495.0,0.20279803]
[1764058476003,0.36482291,87496.0,87495.0,0.20279803]
[1764058476192,0.60482291,87496.0,87495.0,0.20279803]
[1764058477097,0.69786503,87496.0,87495.0,0.20279803]
[1764058479114,0.51730503,87496.0,87495.0,0.20279803]
[1764058479600,0.33949697,87496.0,87495.0,0.20279803]
[1764058480399,0.33949697,87496.0,87495.0,0.00219803]
[1764058480797,0.0114337,87491.0,87480.0,0.05401]
[1764058481003,0.5719937,87491.0,87480.0,0.05401]
[1764058482207,0.7119937,87491.0,87480.0,0.05401]
[1764058482400,0.0138957,87476.0,87475.0,0.2389]
[1764058482602,0.4338957,87476.0,87475.0,0.24109803]
[1764058483706,0.01990521,87476.0,87475.0,0.24109803]
[1764058483900,0.01867521,87476.0,87475.0,0.24109803]
[1764058484102,0.013895,87481.0,87480.0,0.24124]
[1764058484411,0.43010109,87481.0,87480.0,0.24343803]
[1764058485310,0.43133109,87481.0,87480.0,0.24343803]
[1764058485500,0.23323012,87481.0,87480.0,0.24343803]
[1764058485698,0.41989609,87481.0,87480.0,0.24343803]
[1764058486202,0.15866609,87481.0,87480.0,0.24343803]
[1764058486410,0.40112609,87481.0,87480.0,0.24343803]
[1764058487000,0.11989609,87481.0,87480.0,0.24343803]
[1764058487210,0.39989609,87481.0,87480.0,0.24343803]
[1764058487714,0.00017143,87484.0,87483.0,0.18489]
[1764058487913,0.0114326,87500.0,87490.0,0.05635]
[1764058488109,0.62374449,87500.0,87499.0,0.18708803]
[1764058488409,0.24370029,87500.0,87499.0,0.18708803]
[1764058489815,0.32763029,87500.0,87499.0,0.18708803]
[1764058490615,0.41996408,87500.0,87499.0,0.18708803]
[1764058490813,0.65996408,87500.0,87499.0,0.18708803]
[1764058491611,0.68435328,87500.0,87499.0,0.18708803]
[1764058497013,0.1809736,87492.0,87491.0,0.18506143]
[1764058497218,0.6153628,87492.0,87491.0,0.18725946]
[1764058498321,0.6039292,87492.0,87491.0,0.18725946]
[1764058499423,0.57954,87492.0,87491.0,0.18725946]
[1764058499617,0.22954,87492.0,87491.0,0.18725946]
[1764058500112,0.16954,87492.0,87491.0,0.18725946]
[1764058500515,0.09233379,87500.0,87499.0,0.18489]
[1764058500712,0.20496331,87500.0,87499.0,0.18708803]
[1764058500910,0.29057331,87500.0,87499.0,0.18708803]
[1764058501118,0.02406339,87500.0,87499.0,0.18708803]
[1764058501416,0.1809705,87516.0,87515.0,0.18489]
[1764058501714,0.3194,87516.0,87515.0,0.18708803]
[1764058501914,0.09417,87527.0,87526.0,0.18702]
[1764058502115,0.189799,87527.0,87526.0,0.18921803]
[1764058502315,0.62834399,87527.0,87526.0,0.18921803]
[1764058502505,0.72704399,87527.0,87526.0,0.09448803]
[1764058502710,0.82061989,87527.0,87526.0,0.00219803]
[1764058504014,0.88276395,87527.0,87526.0,0.00219803]
[1764058504618,0.1466301,87519.0,87518.0,0.18719143]
[1764058504820,0.5566301,87519.0,87518.0,0.18938946]
[1764058505023,0.7371501,87519.0,87518.0,0.18938946]
[1764058505216,0.72572,87519.0,87518.0,0.00236946]
[1764058505421,0.72572,87519.0,87518.0,0.09465946]
[1764058505613,0.72572,87519.0,87518.0,0.00236946]
[1764058507815,0.72572,87519.0,87518.0,0.00017143]
[1764058509221,0.86572,87519.0,87518.0,0.00017143]
[1764058510422,0.72572,87519.0,87518.0,0.00017143]
[1764058510817,0.72572,87519.0,87518.0,0.09246143]
[1764058511024,0.72572,87519.0,87518.0,0.00017143]
[1764058511933,0.53863041,87519.0,87518.0,0.00017143]
[1764058512127,0.53863041,87519.0,87518.0,0.09453143]
[1764058512426,0.53863041,87519.0,87518.0,0.19541946]
[1764058512625,0.35811041,87519.0,87518.0,0.19541946]
[1764058513129,0.56317278,87519.0,87518.0,0.19541946]
[1764058514925,0.38265278,87519.0,87518.0,0.19541946]
[1764058515126,0.18526237,87519.0,87518.0,0.19541946]
[1764058515324,0.51526237,87519.0,87518.0,0.19541946]
[1764058519731,0.51516237,87519.0,87518.0,0.19541946]
[1764058519928,0.51516237,87519.0,87518.0,0.00236946]
[1764058520135,0.51516237,87519.0,87518.0,0.00017143]
[1764058520428,0.65516237,87519.0,87518.0,0.00017143]
[1764058526032,0.65516237,87519.0,87518.0,0.09453143]
[1764058526232,0.65516237,87519.0,87518.0,0.00017143]
[1764058527038,0.65516237,87519.0,87518.0,0.09453143]
[1764058528239,0.65516237,87519.0,87518.0,0.19541946]
[1764058529842,0.51516237,87519.0,87518.0,0.19541946]
[1764058531938,0.56516237,87519.0,87518.0,0.19541946]
[1764058533141,0.56516237,87519.0,87518.0,0.09672946]
[1764058533334,0.56516237,87519.0,87518.0,0.19541946]
[1764058534040,0.56516237,87519.0,87518.0,0.09672946]
[1764058534446,0.56516237,87519.0,87518.0,0.19541946]
[1764058536457,0.42444237,87519.0,87518.0,0.19541946]
[1764058536758,0.27496237,87519.0,87518.0,0.19541946]
[1764058536949,0.61496237,87519.0,87518.0,0.19541946]
[1764058537143,0.17444237,87519.0,87518.0,0.19541946]
[1764058537346,0.35496237,87519.0,87518.0,0.19541946]
[1764058537746,0.17444237,87519.0,87518.0,0.19541946]
[1764058537947,0.02444237,87519.0,87518.0,0.19541946]
[1764058538849,2.37e-06,87519.0,87518.0,0.19541946]
[1764058539344,0.06832,87526.0,87525.0,0.0594]
[1764058539551,0.39832,87526.0,87525.0,0.25464803]
[1764058542357,0.09223324,87527.0,87526.0,0.19943]
[1764058542561,0.0114279,87536.0,87535.0,0.27117]
[1764058542750,0.0114279,87536.0,87535.0,0.27336803]
[1764058542751,0.29689906,87536.0,87535.0,0.27336803]
[1764058542952,0.204,87536.0,87535.0,0.27336803]
[1764058543153,0.11,87536.0,87535.0,0.27336803]
[1764058544055,0.11012,87539.0,87538.0,0.20605]
[1764058544259,0.36012,87539.0,87538.0,0.20824803]
[1764058544452,0.25,87539.0,87538.0,0.20824803]
[1764058545159,0.34104055,87539.0,87538.0,0.20824803]
[1764058545457,0.25,87539.0,87538.0,0.20824803]
[1764058548463,0.2614274,87539.0,87538.0,0.20824803]
[1764058549852,0.25,87539.0,87538.0,0.20824803]
[1764058550357,0.1165861,87549.0,87548.0,0.20605]
[1764058550559,0.4314261,87549.0,87548.0,0.20824803]
[1764058551362,0.45582252,87549.0,87548.0,0.20824803]
[1764058558672,0.45581568,87549.0,87548.0,0.20824803]
[1764058559073,0.44438958,87549.0,87548.0,0.20824803]
[1764058561175,0.44438958,87549.0,87548.0,0.26647803]
[1764058562572,0.19438958,87549.0,87548.0,0.26647803]
[1764058563070,0.02438958,87549.0,87548.0,0.26647803]
[1764058563275,0.0114218,87582.0,87581.0,0.20338]
[1764058563572,0.43,87582.0,87581.0,0.20557803]
[1764058563772,0.05712444,87582.0,87581.0,0.20557803]
[1764058563969,0.43712444,87582.0,87581.0,0.20557803]
[1764058564374,0.09712444,87582.0,87581.0,0.20757803]
[1764058564973,0.09712444,87582.0,87581.0,0.21057803]
[1764058565168,0.01712444,87582.0,87581.0,0.21057803]
[1764058565472,0.011421,87589.0,87588.0,0.10088]
[1764058565673,0.03824,87602.0,87601.0,0.20338]
[1764058565864,0.35532,87602.0,87601.0,0.20557803]
[1764058566065,0.35532,87602.0,87601.0,0.00219803]
[1764058566066,0.37183591,87602.0,87601.0,0.00219803]
[1764058566271,0.37183591,87602.0,87593.0,0.00017123]
[1764058566272,0.0114202,87594.0,87593.0,0.00017123]
[1764058566571,0.39361823,87594.0,87593.0,0.0009039]
[1764058567075,0.50778195,87594.0,87593.0,0.0009039]
[1764058567570,0.50778195,87594.0,87593.0,0.2042839]
[1764058569468,0.67598195,87594.0,87593.0,0.2042839]
[1764058570179,0.67598195,87594.0,87593.0,0.0009039]
[1764058571375,0.67598195,87594.0,87593.0,0.1017839]
[1764058571570,0.67598195,87594.0,87593.0,0.1977139]
[1764058571878,0.57401823,87594.0,87593.0,0.1977139]
[1764058572277,0.22021526,87594.0,87593.0,0.1977139]
[1764058572478,0.32119546,87594.0,87593.0,0.1977139]
[1764058574973,0.46119546,87594.0,87593.0,0.1977139]
[1764058575173,0.4853146,87594.0,87593.0,0.1977139]
[1764058577782,0.5761146,87594.0,87593.0,0.1977139]
[1764058578587,0.5761146,87594.0,87593.0,0.0009039]
[1764058578878,0.4361146,87594.0,87593.0,0.1951139]
[1764058580978,0.4361146,87594.0,87593.0,0.0009039]
[1764058581178,0.4861146,87594.0,87593.0,0.00017123]
[1764058582188,0.60027832,87594.0,87593.0,1.23e-06]
[1764058582386,0.0114219,87581.0,87580.0,0.15651]
[1764058582588,0.0114225,87577.0,87576.0,0.15651]
[1764058582790,0.4414225,87577.0,87576.0,0.25463803]
[1764058583088,0.46554164,87577.0,87576.0,0.25463803]
[1764058584081,0.46554164,87577.0,87576.0,0.15740803]
[1764058584275,0.46554164,87577.0,87576.0,0.05912803]
[1764058584484,0.46554164,87577.0,87576.0,0.00219803]
[1764058584885,0.46554164,87577.0,87576.0,0.15740803]
[1764058585587,0.46554164,87577.0,87576.0,0.00219803]
[1764058585789,0.0114235,87569.0,87568.0,0.00017123]
[1764058585985,0.7217835,87569.0,87568.0,0.00017123]
[1764058586292,0.7217835,87569.0,87540.0,0.05693]
[1764058586293,0.1542657,87552.0,87551.0,0.19421]
[1764058586487,0.5942657,87552.0,87551.0,0.19640803]
[1764058586684,0.1542635,87569.0,87568.0,0.19421]
[1764058586889,0.69396334,87569.0,87568.0,0.19640803]
[1764058587386,0.80815965,87569.0,87568.0,0.19640803]
[1764058588992,0.68259965,87569.0,87568.0,0.19640803]
[1764058589193,0.86295965,87569.0,87568.0,0.19640803]
[1764058593085,0.86295965,87569.0,87568.0,0.00219803]
[1764058593291,1.00295965,87569.0,87568.0,0.00219803]
[1764058593490,1.00295965,87569.0,87560.0,0.09845123]
[1764058593491,0.1542645,87561.0,87560.0,0.09845123]
[1764058593793,0.56840434,87561.0,87560.0,0.00017123]
[1764058594788,0.56840434,87561.0,87560.0,0.19438123]
[1764058594990,0.56840434,87561.0,87560.0,0.09845123]
[1764058595190,0.68261108,87561.0,87560.0,0.00017123]
[1764058595389,0.68261108,87561.0,87540.0,0.05693]
[1764058595390,0.2115864,87547.0,87546.0,0.19421]
[1764058595590,0.8319464,87547.0,87546.0,0.25333803]
[1764058595883,0.5719464,87547.0,87546.0,0.25333803]
[1764058596088,0.58996688,87547.0,87546.0,0.25333803]
[1764058596400,0.81996688,87547.0,87546.0,0.25333803]
[1764058596897,0.8440948,87547.0,87546.0,0.25333803]
[1764058597395,0.20033134,87555.0,87554.0,0.19421]
[1764058597697,0.73481667,87555.0,87554.0,0.19640803]
[1764058598096,0.75210828,87555.0,87554.0,0.19640803]
[1764058598898,0.75210828,87555.0,87554.0,0.10047803]
[1764058600196,0.75210828,87555.0,87554.0,0.19640803]
[1764058600907,0.75210828,87555.0,87554.0,0.00219803]
[1764058601201,0.75210828,87555.0,87540.0,0.02806246]
[1764058601202,0.0114272,87541.0,87540.0,0.02806246]
[1764058601396,0.6195672,87541.0,87540.0,0.09559]
[1764058601900,0.6195672,87541.0,87540.0,0.09778803]
[1764058602105,0.6195672,87541.0,87540.0,0.19099803]
[1764058603793,0.6195672,87541.0,87540.0,0.00219803]
[1764058604198,0.6195672,87541.0,87540.0,0.09778803]
[1764058604701,0.18814,87539.0,87538.0,0.00017134]
[1764058604903,0.1995689,87528.0,87527.0,0.1888]
[1764058605104,0.5795689,87528.0,87527.0,0.19099803]
[1764058605897,0.57967169,87528.0,87527.0,0.19099803]
[1764058606999,0.26824279,87528.0,87527.0,0.19099803]
[1764058607194,0.09055279,87528.0,87527.0,0.19099803]
[1764058609006,0.00010279,87528.0,87527.0,0.19099803]
[1764058609793,0.18824279,87528.0,87527.0,0.19099803]
[1764058609999,0.58824279,87528.0,87527.0,0.19099803]
[1764058610601,0.00010279,87528.0,87527.0,0.19099803]
[1764058612904,0.01153159,87528.0,87527.0,0.19099803]
[1764058615211,0.00010279,87528.0,87527.0,0.19099803]
[1764058615803,2.79e-06,87528.0,87527.0,0.19099803]
[1764058616005,0.00017134,87536.0,87535.0,0.23162]
[1764058616206,0.00017134,87536.0,87535.0,0.23381803]
[1764058616407,0.0114269,87543.0,87542.0,0.19559]
[1764058616710,0.2072769,87543.0,87542.0,0.19778803]
[1764058617705,0.19585,87543.0,87542.0,0.19778803]
[1764058618606,0.0114267,87545.0,87544.0,0.20365]
[1764058618818,0.0114267,87545.0,87544.0,0.20584803]
[1764058619115,0.2072767,87545.0,87544.0,0.20584803]
[1764058619813,0.23144533,87545.0,87544.0,0.20584803]
[1764058621706,0.02416863,87545.0,87544.0,0.20584803]
[1764058622307,0.00017134,87551.0,87550.0,0.26146]
[1764058622510,0.02417655,87551.0,87550.0,0.26365803]
[1764058622711,0.2680427,87575.0,87574.0,0.20365]
[1764058622918,0.44223082,87575.0,87574.0,0.20584803]
[1764058623117,0.38146082,87575.0,87574.0,0.20584803]
[1764058623415,0.38778111,87575.0,87574.0,0.20584803]
[1764058623615,0.37003812,87575.0,87574.0,0.20584803]
[1764058623813,0.22003812,87575.0,87574.0,0.20584803]
[1764058625111,0.02418812,87575.0,87574.0,0.20584803]
[1764058625315,0.0114224,87578.0,87577.0,0.20365]
[1764058625612,0.13217314,87578.0,87577.0,0.20584803]
[1764058625816,0.12075074,87578.0,87577.0,0.20584803]
[1764058626317,0.02415074,87578.0,87577.0,0.20584803]
[1764058626518,0.19585,87582.0,87581.0,0.20365]
[1764058626708,0.21998902,87582.0,87581.0,0.20584803]
[1764058626908,0.28075902,87582.0,87581.0,0.20584803]
[1764058627216,0.53075902,87582.0,87581.0,0.00219803]
[1764058627609,0.2072735,87570.0,87569.0,0.20365]
[1764058627914,0.2072735,87570.0,87569.0,0.00219803]
[1764058627915,0.7180435,87570.0,87569.0,0.00219803]
[1764058628120,0.74217112,87570.0,87569.0,0.00219803]
[1764058628513,0.19585,87567.0,87566.0,0.00017134]
[1764058628716,0.42997762,87567.0,87566.0,0.00236937]
[1764058628921,0.42997762,87567.0,87566.0,0.10601937]
[1764058629112,0.59997762,87567.0,87566.0,0.00236937]
[1764058629315,0.59997762,87567.0,87566.0,0.00017134]
[1764058629719,0.57585,87567.0,87566.0,0.00017134]
[1764058630216,0.57585,87567.0,87566.0,0.10382134]
[1764058630419,0.57585,87567.0,87566.0,0.20601937]
[1764058630617,0.06077,87576.0,87566.0,0.20601937]
[1764058630919,0.0966,87575.0,87574.0,0.20311]
[1764058631222,0.26509,87582.0,87581.0,0.19823]
[1764058631422,0.67509,87582.0,87581.0,0.20042803]
[1764058631816,0.67509,87582.0,87581.0,0.00219803]
[1764058632122,0.67509,87582.0,87581.0,0.20042803]
[1764058632720,0.20432,87567.0,87566.0,0.19840134]
[1764058633021,0.26194,87577.0,87576.0,0.19823]
[1764058633221,0.06077,87582.0,87576.0,0.20042803]
[1764058633416,0.16197,87582.0,87581.0,0.19823]
[1764058633622,0.26509,87582.0,87581.0,0.20042803]
[1764058633928,0.2765118,87582.0,87581.0,0.20042803]
[1764058635223,0.6565118,87582.0,87581.0,0.10096803]
[1764058635418,0.6565118,87582.0,87581.0,0.00219803]
[1764058635730,0.3865118,87582.0,87581.0,0.00219803]
[1764058635920,0.5865118,87582.0,87581.0,0.00219803]
[1764058636126,0.5865118,87582.0,87581.0,0.20042803]
[1764058636528,0.3565118,87582.0,87581.0,0.10096803]
[1764058636722,0.5765118,87582.0,87581.0,0.10096803]
[1764058637124,0.5765118,87582.0,87581.0,0.00219803]
[1764058637327,0.20432,87567.0,87566.0,0.19840134]
[1764058637517,0.1012,87570.0,87569.0,0.19823]
[1764058637716,0.1012,87570.0,87569.0,0.20042803]
[1764058638120,0.26194,87577.0,87576.0,0.19823]
[1764058638324,0.26194,87577.0,87576.0,0.20042803]
[1764058638525,0.20432,87582.0,87581.0,0.19823]
[1764058638730,0.2157418,87582.0,87581.0,0.20042803]
[1764058639730,0.20432,87582.0,87581.0,0.20042803]
[1764058647043,0.22847871,87582.0,87581.0,0.20042803]
[1764058648132,0.67847871,87582.0,87581.0,0.20042803]
[1764058648331,0.67847871,87582.0,87581.0,0.10096803]
[1764058648934,0.67847871,87582.0,87581.0,0.00219803]
[1764058649445,0.67847871,87582.0,87566.0,0.00017134]
[1764058649634,0.1012,87568.0,87567.0,0.20042803]
[1764058650039,0.26194,87576.0,87575.0,0.19823]
[1764058650241,0.26194,87576.0,87575.0,0.20042803]
[1764058650645,0.20432,87576.0,87575.0,0.20042803]
[1764058650838,0.2157426,87576.0,87575.0,0.20042803]
[1764058651239,0.20432,87576.0,87575.0,0.20042803]
[1764058652346,0.22853544,87576.0,87575.0,0.20042803]
[1764058653951,0.28615544,87576.0,87575.0,0.20042803]
[1764058654944,0.66615544,87576.0,87575.0,0.20042803]
[1764058655645,0.66615544,87576.0,87575.0,0.00219803]
[1764058655841,0.66615544,87576.0,87566.0,0.00017134]
[1764058655842,0.2157438,87567.0,87566.0,0.19840134]
[1764058656042,0.23995924,87567.0,87566.0,0.19840134]
[1764058656549,0.23995924,87567.0,87566.0,0.20059937]
[1764058657751,0.66995924,87567.0,87566.0,0.00236937]
[1764058657951,0.66995924,87567.0,87566.0,0.00017134]
[1764058659141,0.36995924,87567.0,87566.0,0.00017134]
[1764058660551,0.36995924,87567.0,87566.0,0.19840134]
[1764058660748,0.67995924,87567.0,87566.0,0.09894134]
[1764058660954,0.67995924,87567.0,87566.0,0.00017134]
[1764058661946,0.67995924,87567.0,87566.0,0.09963134]
[1764058662244,0.67995924,87567.0,87566.0,0.00017134]
[1764058662454,0.35995924,87567.0,87566.0,0.00017134]
[1764058663048,0.35995924,87567.0,87566.0,0.09963134]
[1764058663250,0.35995924,87567.0,87566.0,0.00017134]
[1764058663645,0.23995924,87567.0,87566.0,0.19308134]
[1764058663843,0.23995924,87567.0,87566.0,0.19527937]
[1764058664049,0.22853544,87567.0,87566.0,0.19527937]
[1764058664559,0.23995914,87567.0,87566.0,0.00236937]
[1764058664859,0.23995914,87567.0,87566.0,0.19527937]
[1764058666556,0.23995914,87567.0,87566.0,0.10182937]
[1764058666757,0.23995914,87567.0,87566.0,0.19527937]
[1764058668560,0.22853544,87567.0,87566.0,0.19527937]
[1764058672457,0.20432,87567.0,87566.0,0.19527937]
[1764058673157,0.0114235,87569.0,87566.0,0.19527937]
[1764058673361,0.1040435,87569.0,87568.0,0.19291]
[1764058673561,0.2059735,87569.0,87568.0,0.19510803]
[1764058674453,0.25217,87576.0,87575.0,0.19291]
[1764058674661,0.27628888,87576.0,87575.0,0.19510803]
[1764058674862,0.25217,87576.0,87575.0,0.19510803]
[1764058675061,0.19455,87576.0,87575.0,0.19510803]
[1764058675265,0.09262,87576.0,87575.0,0.19510803]
[1764058677057,0.0620821,87580.0,87578.0,0.0114222]
[1764058677058,0.09262,87580.0,87578.0,0.0114222]
[1764058677267,0.08429134,87583.0,87582.0,0.1662]
[1764058677468,0.16550134,87583.0,87582.0,0.16839803]
[1764058678161,0.00017134,87583.0,87582.0,0.16839803]
[1764058678762,0.16550134,87583.0,87582.0,0.16839803]
[1764058680364,0.58550134,87583.0,87582.0,0.00219803]
[1764058680569,0.1767537,87567.0,87566.0,0.16637134]
[1764058680777,0.14931726,87567.0,87566.0,0.16856937]
[1764058680973,0.16074096,87567.0,87566.0,0.16856937]
[1764058681375,0.14931726,87567.0,87566.0,0.16856937]
[1764058684162,0.15031726,87567.0,87566.0,0.16856937]
[1764058684971,0.14931726,87567.0,87566.0,0.16856937]
[1764058686375,0.21401,87576.0,87575.0,0.1662]
[1764058686570,0.21401,87576.0,87575.0,0.16839803]
[1764058686780,0.16533,87581.0,87580.0,0.1662]
[1764058686964,0.16533,87581.0,87580.0,0.16839803]
[1764058687570,0.16533,87581.0,87580.0,0.08567803]
[1764058687763,0.16533,87581.0,87580.0,0.16839803]
[1764058688583,0.16633,87581.0,87580.0,0.16839803]
[1764058689469,0.001,87581.0,87580.0,0.16839803]
[1764058689868,0.08512,87581.0,87580.0,0.16839803]
[1764058690274,0.16633,87581.0,87580.0,0.16839803]
[1764058693180,0.001,87581.0,87580.0,0.16839803]
[1764058693374,1.34e-06,87583.0,87582.0,0.18807]
[1764058693678,1.34e-06,87583.0,87582.0,0.19026803]
[1764058693878,0.16537134,87583.0,87582.0,0.17218803]
[1764058694067,0.17679304,87583.0,87582.0,0.17218803]
[1764058694575,0.16637134,87583.0,87582.0,0.17218803]
[1764058695481,0.17779304,87583.0,87582.0,0.17218803]
[1764058696379,0.16637134,87583.0,87582.0,0.17218803]
[1764058697279,0.16637134,87583.0,87582.0,0.00219803]
[1764058697483,0.58537134,87583.0,87582.0,0.00219803]
[1764058697977,0.16537134,87583.0,87582.0,0.17218803]
[1764058698769,0.16637134,87583.0,87582.0,0.17218803]
[1764058699779,1.34e-06,87583.0,87582.0,0.00219803]
[1764058700772,0.08148134,87583.0,87582.0,0.08505803]
[1764058700977,0.16537134,87583.0,87582.0,0.17218803]
[1764058702084,1.34e-06,87583.0,87582.0,0.01361983]
[1764058707596,0.0114198,87598.0,87597.0,0.16999]
[1764058707798,0.08148,87599.0,87598.0,0.1814097]
[1764058707998,0.08148,87599.0,87598.0,0.18360773]
[1764058708407,0.16537,87599.0,87598.0,0.17218803]
[1764058709208,0.16637,87599.0,87598.0,0.17218803]
[1764058711812,0.001,87599.0,87598.0,0.17218803]
[1764058712005,0.08248,87599.0,87598.0,0.17218803]
[1764058712405,0.16637,87599.0,87598.0,0.17218803]
[1764058713111,0.16537,87599.0,87598.0,0.17218803]
[1764058713315,0.16537,87599.0,87598.0,0.18360773]
[1764058713907,0.08148,87599.0,87598.0,0.18360773]
[1764058714214,0.21281,87605.0,87604.0,0.16999]
[1764058714410,0.21281,87605.0,87604.0,0.17218803]
[1764058715716,0.21381,87605.0,87604.0,0.17218803]
[1764058721617,0.21281,87605.0,87604.0,0.17218803]
[1764058723421,0.00017034,87607.0,87606.0,0.14264]
[1764058723614,0.00017034,87607.0,87606.0,0.14483803]
[1764058724118,0.15852034,87607.0,87606.0,0.00219803]
[1764058724620,0.15852034,87607.0,87606.0,0.14483803]
[1764058727126,0.15852034,87607.0,87606.0,0.07351803]
[1764058727714,0.15852034,87607.0,87606.0,0.14483803]
[1764058728522,0.00017034,87607.0,87606.0,0.14483803]
[1764058728929,0.15852034,87607.0,87606.0,0.14483803]
[1764058729537,0.00017034,87607.0,87606.0,0.14483803]
[1764058730229,0.55852034,87607.0,87606.0,0.00219803]
[1764058730434,0.15835,87591.0,87590.0,0.14501123]
[1764058730625,0.16054803,87591.0,87590.0,0.1457439]
[1764058731433,0.16054803,87591.0,87590.0,0.0009039]
[1764058732128,0.16054803,87591.0,87590.0,0.0744239]
[1764058732327,0.16054803,87591.0,87590.0,0.1479439]
[1764058732934,0.16054803,87591.0,87590.0,0.0744239]
[1764058733634,0.16054803,87591.0,87590.0,0.1479439]
[1764058736031,0.16054803,87591.0,87590.0,0.0744239]
[1764058736425,0.16054803,87591.0,87590.0,0.0009039]
[1764058738021,0.16054803,87591.0,87590.0,0.1479439]
[1764058738223,0.16054803,87591.0,87590.0,0.0009039]
[1764058740236,0.16054803,87591.0,87590.0,0.0744239]
[1764058740434,0.16054803,87591.0,87590.0,0.1479439]
[1764058740938,0.17196863,87591.0,87590.0,0.1479439]
[1764058741328,0.17196863,87591.0,87590.0,0.0744239]
[1764058741631,0.17196863,87591.0,87590.0,0.0009039]
[1764058741822,0.17196863,87591.0,87590.0,0.00017123]
[1764058742026,0.17196863,87591.0,87549.0,0.011426]
[1764058742027,0.1328,87574.0,87573.0,0.11818]
[1764058742226,0.13499803,87574.0,87573.0,0.11891267]
[1764058743436,0.13499803,87574.0,87573.0,0.11991267]
[1764058748037,0.06843803,87574.0,87573.0,0.11991267]
[1764058748239,0.1328,87580.0,87579.0,0.1296022]
[1764058748439,0.00017123,87582.0,87581.0,0.11818]
[1764058748741,0.00017123,87582.0,87581.0,0.11891267]
[1764058749335,0.13516926,87582.0,87581.0,0.11891267]
[1764058749733,0.13516926,87582.0,87581.0,0.11991267]
[1764058751948,0.13516926,87582.0,87581.0,0.06082267]
[1764058752245,0.13516926,87582.0,87581.0,0.11287267]
[1764058753544,0.00017123,87582.0,87581.0,0.11287267]
[1764058754448,0.04139,87600.0,87599.0,0.10376]
[1764058754449,0.17908,87600.0,87599.0,0.10376]
[1764058754649,0.081849,87604.0,87603.0,0.10376]
[1764058754849,0.07043,87604.0,87603.0,0.11591177]
[1764058755035,0.1491082,87610.0,87609.0,0.10376]
[1764058755242,0.08404623,87610.0,87609.0,0.10449267]
[1764058755441,0.15130623,87610.0,87609.0,0.05261267]
[1764058755638,0.15130623,87610.0,87609.0,0.00073267]
[1764058755953,0.15130623,87610.0,87609.0,0.10449267]
[1764058757753,0.13988803,87610.0,87609.0,0.10449267]
[1764058759342,0.15130613,87610.0,87609.0,0.05261267]
[1764058760260,0.15130613,87610.0,87609.0,0.10449267]
[1764058760755,0.15130613,87610.0,87609.0,0.05261267]
[1764058761060,0.15130613,87610.0,87609.0,0.00073267]
[1764058765862,0.1491092,87602.0,87601.0,0.00017123]
[1764058766061,0.15130723,87602.0,87601.0,0.0009039]
[1764058767865,0.13988803,87602.0,87601.0,0.0009039]
[1764058768956,0.13988803,87602.0,87601.0,0.0123232]
[1764058769265,0.13988803,87602.0,87601.0,0.0009039]
[1764058776554,0.13988803,87602.0,87601.0,0.0642032]
[1764058776854,0.13988803,87602.0,87601.0,0.0527839]
[1764058777161,0.13988803,87602.0,87601.0,0.0642032]
[1764058777365,0.15130723,87602.0,87601.0,0.1046639]
[1764058777861,0.15130723,87602.0,87601.0,0.00017123]
[1764058779069,0.13769,87581.0,87580.0,0.20053389]
[1764058779267,0.15130993,87581.0,87580.0,0.00073267]
[1764058780366,0.15130993,87581.0,87580.0,0.00173267]
[1764058781466,0.15130993,87581.0,87580.0,0.01315477]
[1764058781964,0.15130993,87581.0,87580.0,0.00173267]
[1764058782365,0.15130993,87581.0,87580.0,0.05378267]
[1764058783368,0.13988803,87581.0,87580.0,0.05378267]
[1764058783761,0.13988803,87581.0,87580.0,0.00173267]
[1764058784560,0.13988803,87581.0,87580.0,0.06627267]
[1764058785572,0.13988803,87581.0,87580.0,0.00173267]
[1764058785877,0.13988803,87581.0,87580.0,0.001]
[1764058786166,0.13988803,87581.0,87572.0,0.00017123]
[1764058786167,0.143023,87573.0,87572.0,0.00017123]
[1764058786361,0.14522103,87573.0,87572.0,0.00017123]
[1764058788073,0.14522103,87573.0,87572.0,0.00117123]
[1764058789178,0.13379803,87573.0,87572.0,0.0684439]
[1764058791774,0.06732803,87573.0,87572.0,0.0684439]
[1764058791979,0.13379803,87573.0,87572.0,0.0684439]
[1764058792475,0.13379803,87573.0,87572.0,0.0019039]
[1764058794376,0.13379803,87573.0,87572.0,0.00117123]
[1764058800883,0.13379803,87573.0,87572.0,0.0587539]
[1764058801370,0.15047,87576.0,87575.0,0.04716]
[1764058801572,0.15047,87576.0,87575.0,0.04935803]
[1764058802374,0.15468,87582.0,87581.0,0.0585819]
[1764058802571,0.15468,87588.0,87587.0,0.0585811]
[1764058802767,0.15468,87588.0,87587.0,0.06077913]
[1764058802978,0.15468,87588.0,87587.0,0.04935803]
[1764058803574,0.0114199,87597.0,87588.0,0.124161]
[1764058803773,0.0114199,87597.0,87588.0,0.12635903]
[1764058803975,0.11346123,87589.0,87588.0,0.12635903]
[1764058804475,0.11346123,87589.0,87588.0,0.11493803]
[1764058805870,0.00017123,87589.0,87588.0,0.11493803]
[1764058806075,0.1247093,87602.0,87601.0,0.05746]
[1764058806273,0.1247093,87602.0,87601.0,0.11493803]
[1764058806480,0.1247093,87602.0,87601.0,0.00219803]
[1764058807780,0.1247093,87602.0,87601.0,0.11807803]
[1764058809473,0.1247093,87602.0,87601.0,0.00219803]
[1764058812284,0.1247093,87602.0,87593.0,0.00017123]
[1764058812285,0.1658102,87594.0,87593.0,0.00017123]
[1764058815183,0.1658102,87594.0,87593.0,0.00236926]
[1764058815378,0.15439,87594.0,87593.0,0.00236926]
[1764058815583,0.15439,87594.0,87593.0,0.12089926]
[1764058815884,0.1658102,87594.0,87593.0,0.06337926]
[1764058816087,0.1658102,87594.0,87593.0,0.00236926]
[1764058816686,0.15439,87594.0,87593.0,0.12089926]
[1764058817286,0.15439,87594.0,87593.0,0.06337926]
[1764058817686,0.15439,87594.0,87593.0,0.12089926]
[1764058818185,0.15439,87594.0,87593.0,0.06337926]
[1764058818386,0.15439,87594.0,87593.0,0.12089926]
[1764058818785,0.12517,87594.0,87593.0,0.12089926]
[1764058819178,0.13675844,87610.0,87609.0,0.06101]
[1764058819375,0.13675844,87610.0,87609.0,0.06320803]
[1764058819577,0.13675844,87610.0,87609.0,0.00219803]
[1764058821081,0.12534034,87610.0,87609.0,0.00219803]
[1764058821274,0.13675844,87610.0,87609.0,0.00219803]
[1764058821480,0.14252,87594.0,87593.0,0.06118123]
[1764058821786,0.14471803,87594.0,87593.0,0.1194339]
[1764058821985,0.12736803,87594.0,87593.0,0.1194339]
[1764058824384,0.0244,87606.0,87593.0,0.1194339]
[1764058824590,0.12517,87606.0,87605.0,0.1299488]
[1764058824792,0.12736803,87606.0,87605.0,0.13068147]
[1764058824989,0.12736803,87606.0,87605.0,0.11926267]